{"text_format":"1","workbook":"xlsx","n_sheets":7,"sheets":["About tool","Overview & results","Company Management","Idea Generation & Research","Development & Testing","Market & Impact","Settings"],"not_rendered":{"charts":0,"images":13,"macros":1,"external_links":0,"defined_names":25,"comments":0,"pivot_tables":0},"unopened":[],"bounds":{"document_bytes":16777216,"sheet_cells":100000,"rows_first":2000,"rows_last":500,"rows_between":2000,"halvings":0,"cell_chars":16384,"cell_head_chars":4096},"cells_cut":0,"cells_raw":0,"read":"whole","date_system":"1900"}

{"sheet":"About tool","index":0,"n_rows":22,"n_cols":12,"rows_kept":22,"cut":false,"hidden":false,"merged":[[7,4,11,12],[12,4,16,12],[18,4,20,6],[18,7,18,11],[21,4,21,12]]}
[]
[]
[]
[]
[]
[null,null,null,null,null,null,null,null,null,null,null,"Self-check tool"]
[]
[null,null,null,null,"The COMPASS Responsible Innovation self-check tool aims to help Small and Medium-Sized Enterprises  (SMEs) in highly innovative sectors learn how to effectively integrate responsible innovation practices into their company and innovation management. The tool will help SMEs to assess where their company stands now, and what they can do to make their innovation practices more responsible. This excel based tool is a limited functionality version of the COMPASS online self-check tool. The online version offers a benchmarking anmd follow up actions functions.\n"]
[]
[]
[]
[]
[null,null,null,null,"This self-check tool is a learning instrument that guides a user through the most important RI practices in company and innovation management. It has 50 questions structured along key company functions. Each question points to the importance of certain practice, and the answer options which are provided stand as good practice examples. Each question is scored and an overview of your score is provided in the \"Overview & Results\" sheet, as well as in individual sections and subsections. It thus enables companies to self-assess their strengths and weaknesses and identify practices that can help develop more responsible approaches to innovation."]
[]
[]
[]
[]
[]
[null,null,null,null,"For more informaton and FAQ please visit:",null,null,"www.innovation-compass.eu/self-check"]
[]
[]
[null,null,null,null,"The COMPASS self-check tool has been developed as part of an European Union H2020 funded project COMPASS (Grant agreement number: 710543). Main authors of the tool are Tharani, A., Jarmai, K. & Nwafor, C. along with the COMPASS (710543) project consortium. To learn more about the project and how the tool was developed please visit www.innovation-compass.eu."]

{"sheet":"Overview & results","index":1,"n_rows":22,"n_cols":14,"rows_kept":22,"cut":false,"hidden":false,"merged":[[21,9,23,12],[0,3,0,6]]}
["Company name"]
["Your results"]
[]
[]
[]
[]
[]
[null,null,null,null,"Your score",null,null,null,"You scored",null,null,"You scored",null,"You scored"]
[null,null,null,null,{"$f":"'Company Management'!H17","v":0},null,null,null,{"$f":"'Idea Generation & Research'!H12","v":0},null,null,{"$f":"'Development & Testing'!H12","v":0},null,{"$f":"'Market & Impact'!H11","v":0}]
[]
[null,null,null,{"$f":"'Company Management'!C8","v":"Mission"},{"$f":"'Company Management'!H8","v":0},null,null,{"$f":"'Idea Generation & Research'!C8","v":"Prioritising Societal Challenges"},{"$f":"'Idea Generation & Research'!H8","v":0},null,{"$f":"'Development & Testing'!C8","v":"Developing with Stakeholders"},{"$f":"'Development & Testing'!H8","v":0},{"$f":"'Market & Impact'!C8","v":"Contributing to Solving Societal Challenges"},{"$f":"'Market & Impact'!H8","v":0}]
[null,null,null,{"$f":"'Company Management'!C9","v":"Ethical Conduct"},{"$f":"'Company Management'!H9","v":0},null,null,{"$f":"'Idea Generation & Research'!C9","v":"Involving Stakeholders"},{"$f":"'Idea Generation & Research'!H9","v":0},null,{"$f":"'Development & Testing'!C9","v":"Implementing Safeguards"},{"$f":"'Development & Testing'!H9","v":0},{"$f":"'Market & Impact'!C9","v":"Minimising Negative Effects"},{"$f":"'Market & Impact'!H9","v":0}]
[null,null,null,{"$f":"'Company Management'!C10","v":"Transparency"},{"$f":"'Company Management'!H10","v":0},null,null,{"$f":"'Idea Generation & Research'!C10","v":"Anticipating Impacts"},{"$f":"'Idea Generation & Research'!H10","v":0},null,{"$f":"'Development & Testing'!C10","v":"Sustainable Production and Sourcing"},{"$f":"'Development & Testing'!H10","v":0},{"$f":"'Market & Impact'!C10","v":"Reviewing and Adapting"},{"$f":"'Market & Impact'!H10","v":0}]
[null,null,null,{"$f":"'Company Management'!C11","v":"Data Management"},{"$f":"'Company Management'!H11","v":0},null,null,{"$f":"'Idea Generation & Research'!C11","v":"Reviewing & Adapting"},{"$f":"'Idea Generation & Research'!H11","v":0},null,{"$f":"'Development & Testing'!C11","v":"Reviewing & Adapting"},{"$f":"'Development & Testing'!H11","v":0}]
[null,null,null,{"$f":"'Company Management'!C12","v":"Science Education"},{"$f":"'Company Management'!H12","v":0}]
[null,null,null,{"$f":"'Company Management'!C13","v":"Standards"},{"$f":"'Company Management'!H13","v":0}]
[null,null,null,{"$f":"'Company Management'!C14","v":"Diversity & Equality"},{"$f":"'Company Management'!H14","v":0}]
[null,null,null,{"$f":"'Company Management'!C15","v":"Employee Health & Safety"},{"$f":"'Company Management'!H15","v":0}]
[null,null,null,{"$f":"'Company Management'!C16","v":"Employee Responsibility"},{"$f":"'Company Management'!H16","v":0}]
[]
[]
[null,null,null,null,null,null,null,null,null,"The COMPASS self-check tool has been developed as part of an European Union H2020 funded project COMPASS (Grant agreement number: 710543). Tool created by: Tharani, A., Jarmai, K. & Nwafor, C. together with the COMPASS (710543) project consortium. To learn more about the project and how the tool was developed please visit www.innovation-compass.eu."]

{"sheet":"Company Management","index":2,"n_rows":218,"n_cols":22,"rows_kept":218,"cut":false,"hidden":false,"merged":[[15,0,25,0],[27,5,27,9],[104,1,104,11],[39,3,39,10],[34,1,34,11],[93,3,93,10],[94,3,94,10],[95,3,95,10],[96,3,96,10],[97,3,97,10],[85,3,85,9],[84,3,84,4],[83,3,83,10],[75,3,75,10],[76,3,76,10],[77,3,77,10],[44,5,44,9],[57,5,57,9],[84,5,84,9],[64,5,64,9],[72,5,72,9],[21,1,21,11],[22,3,22,11],[35,3,35,11],[47,3,47,11],[59,3,59,11],[66,3,66,11],[74,3,74,11],[112,3,112,9],[106,3,106,10],[99,3,99,9],[98,3,98,10],[92,3,92,10],[78,3,78,10],[79,3,79,10],[81,3,81,10],[82,3,82,10],[73,3,73,9],[64,3,64,4],[63,3,63,10],[60,3,60,10],[61,3,61,10],[62,3,62,10],[72,3,72,4],[71,3,71,10],[111,5,111,9],[146,1,146,11],[191,1,191,11],[206,1,206,11],[113,3,113,11],[125,3,125,11],[137,3,137,11],[147,3,147,11],[201,3,201,9],[154,3,154,11],[165,3,165,11],[152,5,152,9],[163,5,163,9],[172,5,172,9],[178,5,178,9],[185,5,185,9],[174,3,174,11],[180,3,180,11],[181,3,181,10],[182,3,182,10],[179,3,179,9],[175,3,175,10],[176,3,176,10],[173,3,173,9],[172,3,172,4],[196,3,196,10],[197,3,197,10],[198,3,198,10],[199,3,199,10],[200,3,200,4],[192,3,192,11],[215,3,215,4],[216,3,216,9],[214,3,214,10],[208,3,208,10],[209,3,209,10],[210,3,210,10],[211,3,211,10],[212,3,212,10],[213,3,213,10],[215,5,215,9],[207,3,207,11],[193,3,193,10],[194,3,194,10],[195,3,195,10],[200,5,200,9],[164,3,164,9],[163,3,163,4],[162,3,162,10],[160,3,160,10],[161,3,161,10],[159,3,159,11],[186,3,186,9],[185,3,185,4],[184,3,184,10],[183,3,183,10],[178,3,178,4],[171,3,171,10],[166,3,166,10],[167,3,167,10],[168,3,168,10],[169,3,169,10],[170,3,170,10],[177,3,177,12],[153,3,153,9],[152,3,152,4],[151,3,151,10],[148,3,148,10],[149,3,149,10],[150,3,150,10],[156,3,156,10],[157,3,157,10],[158,3,158,10],[155,3,155,10],[131,3,131,9],[126,3,126,10],[127,3,127,10],[128,3,128,10],[129,3,129,10],[130,3,130,5],[130,6,130,9],[141,3,141,9],[138,3,138,10],[139,3,139,10],[140,3,140,10],[136,1,136,11],[118,3,118,4],[117,3,117,10],[114,3,114,10],[115,3,115,10],[116,3,116,10],[91,3,91,11],[105,3,105,11],[118,5,118,9],[107,3,107,10],[108,3,108,10],[11,2,11,4],[12,2,12,4],[13,2,13,4],[14,2,14,4],[15,2,15,4],[4,2,4,7],[7,2,7,4],[8,2,8,4],[9,2,9,4],[10,2,10,4],[19,2,19,8],[32,2,32,8],[88,2,88,8],[102,2,102,8],[122,2,122,8],[134,2,134,8],[144,2,144,8],[189,2,189,8],[204,2,204,8],[23,3,23,10],[24,3,24,10],[25,3,25,10],[26,3,26,10],[42,3,42,10],[44,3,44,4],[46,3,46,9],[29,3,29,9],[27,3,27,4],[36,3,36,10],[37,3,37,10],[38,3,38,10],[40,3,40,10],[41,3,41,10],[58,3,58,9],[124,1,124,11],[90,1,90,11],[28,3,28,9],[43,3,43,10],[45,3,45,10],[65,3,65,10],[80,3,80,10],[110,3,110,10],[109,3,109,11],[67,3,67,10],[68,3,68,10],[69,3,69,10],[70,3,70,10],[57,3,57,4],[48,3,48,10],[49,3,49,10],[50,3,50,10],[51,3,51,10],[52,3,52,10],[53,3,53,10],[54,3,54,10],[55,3,55,10],[56,3,56,10],[119,3,119,9]]}
[]
[null,null,"You have already scored",null,null,{"$f":"H17","v":0},"points in this section"]
["Company Management"]
[]
[null,null,"Section results overview"]
[null,null,"Element",null,null,"Scored","Possible","Share"]
[]
[null,null,{"$f":"C20","v":"Mission"},null,null,{"$f":"C31","v":0},{"$f":"COUNTA(V24:V30)","v":6},{"$f":"F8/G8","v":0}]
[null,null,{"$f":"C33","v":"Ethical Conduct"},null,null,{"$f":"C87","v":0},{"$f":"COUNTA(V37:V86)","v":41},{"$f":"F9/G9","v":0}]
[null,null,{"$f":"C89","v":"Transparency"},null,null,{"$f":"C101","v":0},{"$f":"COUNTA(V93:V99)","v":7},{"$f":"F10/G10","v":0}]
[null,null,{"$f":"C103","v":"Data Management"},null,null,{"$f":"C121","v":0},{"$f":"COUNTA(V107:V120)","v":11},0]
[null,null,{"$f":"C123","v":"Science Education"},null,null,{"$f":"C133","v":0},{"$f":"COUNTA(V126:V132)","v":5},0]
[null,null,{"$f":"C135","v":"Standards"},null,null,{"$f":"C143","v":0},{"$f":"COUNTA(V139:V142)","v":3},0]
[null,null,{"$f":"C145","v":"Diversity & Equality"},null,null,{"$f":"C188","v":0},{"$f":"COUNTA(V149:V187)","v":30},0]
[null,null,{"$f":"C190","v":"Employee Health & Safety"},null,null,{"$f":"C203","v":0},{"$f":"COUNTA(V189:V202)","v":8},0]
["This section includes questions on how Responsible Innovation is integrated into your company’s goals and governance, including how you ensure that employees are empowered to facilitate Responsible Innovation",null,{"$f":"C205","v":"Employee Responsibility"},null,null,{"$f":"C218","v":0},{"$f":"COUNTA(V205:V217)","v":8},0]
[null,null,null,null,"Total points",{"$f":"SUM(F8:F16)","v":0},{"$f":"SUM(G8:G16)","v":119},{"$f":"F17/G17","v":0}]
[]
[]
[null,null,"Mission"]
[null,"Back to top"]
[null,"A documented commitment to the key principles of Responsible Innovation at the highest level of company management is invaluable to guide the company’s innovation activities towards responsibility. Such commitment can be documented in the mission statement or other way."]
[null,null,1,"Does your company’s mission statement, or any corresponding document, include any of the following principles of Responsible Innovation?"]
[null,null,null,"Pursuing innovations that can improve lives and/or environmental sustainability",null,null,null,null,null,null,null,null,null,null,null,null,null,null,null,null,null,false]
[null,null,null,"Developing innovations in consultation with users and society",null,null,null,null,null,null,null,null,null,null,null,null,null,null,null,null,null,false]
[null,null,null,"Contributing to the advancement of science by sharing data with others",null,null,null,null,null,null,null,null,null,null,null,null,null,null,null,null,null,false]
[null,null,null,"Increasing public understanding about scientific progress",null,null,null,null,null,null,null,null,null,null,null,null,null,null,null,null,null,false]
[null,null,null,"Other, please specify:",null,null,null,null,null,null,null,null,null,null,null,null,null,null,null,null,null,false]
[null,null,null,"We follow (some of) the above principles but have no mission statement or corresponding document.",null,null,null,null,null,null,null,null,null,null,null,null,null,null,null,null,null,false]
[null,null,null,"We do not include any of the above in our mission statement or corresponding document.",null,null,null,null,null,null,null,null,null,null,null,null,null,null,null,null,false]
[null,"Total",{"$f":"COUNTIF(V24:V30, TRUE)","v":0}]
[]
[null,null,"Ethical Conduct"]
[null,"Back to top"]
[null,"Internal policy documents such as a Code of Ethics or a Code of Conduct (henceforth “Codes”), can help in ensuring that certain Responsible Innovation principles are observed and maintained in all company dealings. These Codes are an agreed standard of ethical and responsible conduct in research and innovation which guide employees on company values and principles when making decisions."]
[null,null,2,"Which of the following principles of Responsible Innovation are addressed in your company’s Code of Ethics, Code of Conduct or corresponding document?"]
[null,null,null,"Ethical research conduct",null,null,null,null,null,null,null,null,null,null,null,null,null,null,null,null,null,false]
[null,null,null,"Avoiding the pursuit of innovations that can potentially harm people or the environment",null,null,null,null,null,null,null,null,null,null,null,null,null,null,null,null,null,false]
[null,null,null,"Responsible management of research data",null,null,null,null,null,null,null,null,null,null,null,null,null,null,null,null,null,false]
[null,null,null,"Disclosure of potential conflicts of interest",null,null,null,null,null,null,null,null,null,null,null,null,null,null,null,null,null,false]
[null,null,null,"Disclosure of research and innovation funding sources",null,null,null,null,null,null,null,null,null,null,null,null,null,null,null,null,null,false]
[null,null,null,"Consultation of a diverse set of stakeholders at various stages of an innovation process",null,null,null,null,null,null,null,null,null,null,null,null,null,null,null,null,null,false]
[null,null,null,"Special care for vulnerable research participants",null,null,null,null,null,null,null,null,null,null,null,null,null,null,null,null,null,false]
[null,null,null,"Experiments with animals in line with the “three Rs”: Replacement, Reduction and Refinement",null,null,null,null,null,null,null,null,null,null,null,null,null,null,null,null,null,false]
[null,null,null,"Other, please specify:",null,null,null,null,null,null,null,null,null,null,null,null,null,null,null,null,null,false]
[null,null,null,"We follow (some of) the above principles but have no Code of Ethics, Code of Conduct or corresponding document.",null,null,null,null,null,null,null,null,null,null,null,null,null,null,null,null,null,false]
[null,null,null,"We do not specify any of the listed principles in our or corresponding document.",null,null,null,null,null,null,null,null,null,null,null,null,null,null,null,null,false]
[null,null,3,"Which of the following statements applies to your company’s Code of Ethics, Code of Conduct or corresponding document?"]
[null,null,null,"The document is publicly accessible.",null,null,null,null,null,null,null,null,null,null,null,null,null,null,null,null,null,false]
[null,null,null,"The document is reviewed periodically.",null,null,null,null,null,null,null,null,null,null,null,null,null,null,null,null,null,false]
[null,null,null,"Employees have been involved in the development of the document.",null,null,null,null,null,null,null,null,null,null,null,null,null,null,null,null,null,false]
[null,null,null,"External stakeholders have been involved in the development of the document.",null,null,null,null,null,null,null,null,null,null,null,null,null,null,null,null,null,false]
[null,null,null,"Existing standards or tools were used to define the contents of the document.",null,null,null,null,null,null,null,null,null,null,null,null,null,null,null,null,null,false]
[null,null,null,"The document specifies guidelines and procedures for dealing with breaches.",null,null,null,null,null,null,null,null,null,null,null,null,null,null,null,null,null,false]
[null,null,null,"New employees are informed about the document, its contents and enforcement.",null,null,null,null,null,null,null,null,null,null,null,null,null,null,null,null,null,false]
[null,null,null,"Employees are regularly trained on how to make sure the contents of document are enforced within the company.",null,null,null,null,null,null,null,null,null,null,null,null,null,null,null,null,null,false]
[null,null,null,"The document outlines employee responsibilities.",null,null,null,null,null,null,null,null,null,null,null,null,null,null,null,null,null,false]
[null,null,null,"Other, please specify:",null,null,null,null,null,null,null,null,null,null,null,null,null,null,null,null,null,false]
[null,null,null,"We have no such document. / We have such a document but none of the above apply.",null,null,null,null,null,null,null,null,null,null,null,null,null,null,null,null,false]
[null,null,4,"Does your company have access to a body or individual that acts as an ethics advisor; such as e.g. an ethics committee? If so, which of the following apply?"]
[null,null,null,"The terms of reference are publicly available. ",null,null,null,null,null,null,null,null,null,null,null,null,null,null,null,null,null,false]
[null,null,null,"Approval is required for human participation or animal experiments in research and development.",null,null,null,null,null,null,null,null,null,null,null,null,null,null,null,null,null,false]
[null,null,null,"Tasks include feedback about research studies and conveying concerns and complaints. ",null,null,null,null,null,null,null,null,null,null,null,null,null,null,null,null,null,false]
[null,null,null,"Its members receive relevant training on a regular basis.",null,null,null,null,null,null,null,null,null,null,null,null,null,null,null,null,null,false]
[null,null,null,"Other, please specify:",null,null,null,null,null,null,null,null,null,null,null,null,null,null,null,null,null,false]
[null,null,null,"We do not have access to such a body or individual. / We have access to such a body or individual, but none of the above apply.",null,null,null,null,null,null,null,null,null,null,null,null,null,null,null,null,false]
[null,null,5,"Which of the following apply to your company’s handling of concerns about the company’s research or innovations? "]
[null,null,null,"We specify what concerns should be reported (e.g. health and safety concerns, ethical issues, risks).",null,null,null,null,null,null,null,null,null,null,null,null,null,null,null,null,null,false]
[null,null,null,"We publish contact details for reporting concerns.",null,null,null,null,null,null,null,null,null,null,null,null,null,null,null,null,null,false]
[null,null,null,"We specify protection measures for persons expressing concerns (e.g. confidentiality, rights).",null,null,null,null,null,null,null,null,null,null,null,null,null,null,null,null,null,false]
[null,null,null,"We specify procedures for investigating reports of misconduct.",null,null,null,null,null,null,null,null,null,null,null,null,null,null,null,null,null,false]
[null,null,null,"We have rules for maintaining records in place.",null,null,null,null,null,null,null,null,null,null,null,null,null,null,null,null,null,false]
[null,null,null,"Other, please specify:",null,null,null,null,null,null,null,null,null,null,null,null,null,null,null,null,null,false]
[null,null,null,"We specify none of the above.",null,null,null,null,null,null,null,null,null,null,null,null,null,null,null,null,false]
[null,null,6,"Are any of the following groups represented in a decision-making capacity in your company (e.g. on an advisory board)? Select all that are represented:"]
[null,null,null,"Customer representatives",null,null,null,null,null,null,null,null,null,null,null,null,null,null,null,null,null,false]
[null,null,null,"End-user representatives",null,null,null,null,null,null,null,null,null,null,null,null,null,null,null,null,null,false]
[null,null,null,"Civil society organisations",null,null,null,null,null,null,null,null,null,null,null,null,null,null,null,null,null,false]
[null,null,null,"Academic experts or industry experts",null,null,null,null,null,null,null,null,null,null,null,null,null,null,null,null,null,false]
[null,null,null,"Consumer bodies",null,null,null,null,null,null,null,null,null,null,null,null,null,null,null,null,null,false]
[null,null,null,"Trade unions",null,null,null,null,null,null,null,null,null,null,null,null,null,null,null,null,null,false]
[null,null,null,"National governments",null,null,null,null,null,null,null,null,null,null,null,null,null,null,null,null,null,false]
[null,null,null,"International governing bodies",null,null,null,null,null,null,null,null,null,null,null,null,null,null,null,null,null,false]
[null,null,null,"The general public",null,null,null,null,null,null,null,null,null,null,null,null,null,null,null,null,null,false]
[null,null,null,"Other, please specify:",null,null,null,null,null,null,null,null,null,null,null,null,null,null,null,null,null,false]
[null,null,null,"None of the above",null,null,null,null,null,null,null,null,null,null,null,null,null,null,null,null,false]
[null,"Total",{"$f":"COUNTIF(V37:V86, TRUE)","v":0}]
[]
[null,null,"Transparency"]
[null,"Back to top"]
[null,"Disclosure and transparency are key to stakeholder trust in company innovations."]
[null,null,7,"Does your company make any of the following information public?"]
[null,null,null,"Sources of research funding received",null,null,null,null,null,null,null,null,null,null,null,null,null,null,null,null,null,false]
[null,null,null,"Involvement in consortiums or partnerships with other companies",null,null,null,null,null,null,null,null,null,null,null,null,null,null,null,null,null,false]
[null,null,null,"Research methodologies used",null,null,null,null,null,null,null,null,null,null,null,null,null,null,null,null,null,false]
[null,null,null,"Product/service impact assessment results",null,null,null,null,null,null,null,null,null,null,null,null,null,null,null,null,null,false]
[null,null,null,"Supply chain Codes of Conduct",null,null,null,null,null,null,null,null,null,null,null,null,null,null,null,null,null,false]
[null,null,null,"Joint use of research data with third parties ",null,null,null,null,null,null,null,null,null,null,null,null,null,null,null,null,null,false]
[null,null,null,"Joint use of user-generated data with third parties",null,null,null,null,null,null,null,null,null,null,null,null,null,null,null,null,null,false]
[null,null,null,"We make none of the above information public.",null,null,null,null,null,null,null,null,null,null,null,null,null,null,null,null,false]
[null,"Total",{"$f":"COUNTIF(V93:V99, TRUE)","v":0}]
[]
[null,null,"Data Management"]
[null,"Back to top"]
[null,"Responsible data management is a key element in Responsible Innovation. Whether data is collected during basic research, during product testing or generated by the users, it has to be gathered and managed with respect to personal privacy and ethical data management."]
[null,null,8,"How does your company ensure ethical management of (research) data?"]
[null,null,null,"Users’ personal or other sensitive data is not shared with third parties.",null,null,null,null,null,null,null,null,null,null,null,null,null,null,null,null,null,false]
[null,null,null,"Data storage is secured and remains inaccessible to unauthorized third parties.",null,null,null,null,null,null,null,null,null,null,null,null,null,null,null,null,null,false]
[null,null,null,"Data storage is protected against disaster and risk as long as the respective data is in use or until terminated.",null,null,null,null,null,null,null,null,null,null,null,null,null,null,null,null,null,false]
[null,null,null,"When data is no longer in use or the legally required time to maintain it has expired, it is destroyed in a way that guarantees off- and online data protection and irreversibility.",null,null,null,null,null,null,null,null,null,null,null,null,null,null,null,null,null,false]
[null,null,null,"Our measures to ensure protection of data during sharing, re-use, and distribution go beyond the legal requirements applicable to our company.",null,null,null,null,null,null,null,null,null,null,null,null,null,null,null,null,null,false]
[null,null,null,"Other, please specify:",null,null,null,null,null,null,null,null,null,null,null,null,null,null,null,null,null,false]
[null,null,null,"We have none of the above measures in place.",null,null,null,null,null,null,null,null,null,null,null,null,null,null,null,null,false]
[null,null,9,"Does your company share research data with third parties for a public good?"]
[null,null,null,"Non-sensitive and non-personal user-generated or research data is shared, if it has a potential to solve societal challenges.",null,null,null,null,null,null,null,null,null,null,null,null,null,null,null,null,null,false]
[null,null,null,"Research output data (such as analysis and publications) are made openly accessible. ",null,null,null,null,null,null,null,null,null,null,null,null,null,null,null,null,null,false]
[null,null,null,"Precompetitive research data is shared.",null,null,null,null,null,null,null,null,null,null,null,null,null,null,null,null,null,false]
[null,null,null,"We decide on a case-by-case basis.",null,null,null,null,null,null,null,null,null,null,null,null,null,null,null,null,null,false]
[null,null,null,"Other, please specify:",null,null,null,null,null,null,null,null,null,null,null,null,null,null,null,null,null,false]
[null,null,null,"We do not share or make any data openly accessible.",null,null,null,null,null,null,null,null,null,null,null,null,null,null,null,null,false]
[null,"Total",{"$f":"COUNTIF(V107:V120, TRUE)","v":0}]
[]
[null,null,"Science Education"]
[null,"Back to top","A public dialogue about the scientific background of your innovations increases scientific understanding of the innovations and their positive effects, thereby increasing acceptability of your product/service."]
[null,"A public dialogue about the scientific background of your innovations could increase scientific understanding of the innovations and their positive effects, thereby increasing acceptability of your product/service."]
[null,null,10,"Does your company engage in any activities aimed at raising public awareness about the science behind your innovations?"]
[null,null,null,"We collaborate with universities or other educational institutions.",null,null,null,null,null,null,null,null,null,null,null,null,null,null,null,null,null,false]
[null,null,null,"We host Open Door Days for the public.",null,null,null,null,null,null,null,null,null,null,null,null,null,null,null,null,null,false]
[null,null,null,"We publish background information or give interviews in non-scientific media (e.g. newspapers, magazines, blogs).",null,null,null,null,null,null,null,null,null,null,null,null,null,null,null,null,null,false]
[null,null,null,"We organise, or participate in, events targeted at the general public.",null,null,null,null,null,null,null,null,null,null,null,null,null,null,null,null,null,false]
[null,null,null,"Other activities, please specify:",null,null,null,null,null,null,null,null,null,null,null,null,null,null,null,null,null,false]
[null,null,null,"We do not engage in any activities aimed at raising public awareness.",null,null,null,null,null,null,null,null,null,null,null,null,null,null,null,null,false]
[null,"Total",{"$f":"COUNTIF(V126:V132, TRUE)","v":0}]
[]
[null,null,"Standards"]
[null,"Back to top"]
[null,"Implementing standards helps establish norms that relate to minimum requirements for products and services, and guides developers and providers towards responsible practice. In this question ‘standards and regulations’ can be taken to include relevant quality guidelines and Codes of Practice related to the sector."]
[null,null,11,"How does your company address relevant standards and regulations relating to your industry or products/services?"]
[null,null,null,"We constantly monitor developments of standards and regulations at national and international levels.",null,null,null,null,null,null,null,null,null,null,null,null,null,null,null,null,null,false]
[null,null,null,"We improve our processes, products and services in preparation for expected regulatory changes and future standards.",null,null,null,null,null,null,null,null,null,null,null,null,null,null,null,null,null,false]
[null,null,null,"We engage in, and support, the standards and regulatory development in our field.",null,null,null,null,null,null,null,null,null,null,null,null,null,null,null,null,null,false]
[null,null,null,"None of the above.",null,null,null,null,null,null,null,null,null,null,null,null,null,null,null,null,false]
[null,"Total",{"$f":"COUNTIF(V139:V142, TRUE)","v":0}]
[]
[null,null,"Diversity & Equality"]
[null,"Back to top"]
[null,"Diversity management in recruitment and retention can help in attracting employees with high potential regardless of their gender, age, ethnicity, or physical abilities. Women especially remain underrepresented in science-related fields. In order to tap into the full potential of the total workforce, a non-discriminatory recruitment and retention practice is required."]
[null,null,12,"How does your company ensure non-discriminatory (e.g. in terms of gender, age, ethnicity, religion, physical abilities, marital status, sexuality) recruitment practices?"]
[null,null,null,"Recruitment staff are trained in gender and diversity issues.",null,null,null,null,null,null,null,null,null,null,null,null,null,null,null,null,null,false]
[null,null,null,"Job interviews are conducted by diverse interviewers.",null,null,null,null,null,null,null,null,null,null,null,null,null,null,null,null,null,false]
[null,null,null,"Job descriptions are clear about the requirements of the job, in order to provide an objective basis for recruitment.",null,null,null,null,null,null,null,null,null,null,null,null,null,null,null,null,null,false]
[null,null,null,"In case of equal credentials among candidates, preference is given to underrepresented groups (e.g. women).",null,null,null,null,null,null,null,null,null,null,null,null,null,null,null,null,null,false]
[null,null,null,"Other, please specify:",null,null,null,null,null,null,null,null,null,null,null,null,null,null,null,null,null,false]
[null,null,null,"None of the above",null,null,null,null,null,null,null,null,null,null,null,null,null,null,null,null,false]
[null,null,13,"How does your company support employees in managing balance between work and private life? "]
[null,null,null,"Leave opportunities (e.g. sabbatical, parental leave)",null,null,null,null,null,null,null,null,null,null,null,null,null,null,null,null,null,false]
[null,null,null,"Child care arrangements for employees (e.g. offsite subsidized child care)",null,null,null,null,null,null,null,null,null,null,null,null,null,null,null,null,null,false]
[null,null,null,"Measures to support breastfeeding mothers (e.g. lactation rooms)",null,null,null,null,null,null,null,null,null,null,null,null,null,null,null,null,null,false]
[null,null,null,"Prayer rooms for religious employees",null,null,null,null,null,null,null,null,null,null,null,null,null,null,null,null,null,false]
[null,null,null,"Meetings are not scheduled in the early morning or the late afternoon to make sure staff members with caring duties or other private obligations can take part. ",null,null,null,null,null,null,null,null,null,null,null,null,null,null,null,null,null,false]
[null,null,null,"Flexible work time arrangements",null,null,null,null,null,null,null,null,null,null,null,null,null,null,null,null,null,false]
[null,null,null,"Part-time work arrangements",null,null,null,null,null,null,null,null,null,null,null,null,null,null,null,null,null,false]
[null,null,null,"Support for dual careers by helping partners to find employment in case of relocation",null,null,null,null,null,null,null,null,null,null,null,null,null,null,null,null,null,false]
[null,null,null,"Other, please specify:",null,null,null,null,null,null,null,null,null,null,null,null,null,null,null,null,null,false]
[null,null,null,"None of the above",null,null,null,null,null,null,null,null,null,null,null,null,null,null,null,null,false]
[null,null,14,"Which of the following career development practices are implemented in your company?"]
[null,null,null,"Unbiased staff performance appraisals ",null,null,null,null,null,null,null,null,null,null,null,null,null,null,null,null,null,false]
[null,null,null,"Transparent career paths and requirements",null,null,null,null,null,null,null,null,null,null,null,null,null,null,null,null,null,false]
[null,null,null,"Internal mentoring opportunities",null,null,null,null,null,null,null,null,null,null,null,null,null,null,null,null,null,false]
[null,null,null,"Training appropriate to staff development needs",null,null,null,null,null,null,null,null,null,null,null,null,null,null,null,null,null,false]
[null,null,null,"Training organised during paid working time",null,null,null,null,null,null,null,null,null,null,null,null,null,null,null,null,null,false]
[null,null,null,"Training schedules respect employee family care or other personal duties",null,null,null,null,null,null,null,null,null,null,null,null,null,null,null,null,null,false]
[null,null,null,"Other, please specify:",null,null,null,null,null,null,null,null,null,null,null,null,null,null,null,null,null,false]
[null,null,null,"None of the above",null,null,null,null,null,null,null,null,null,null,null,null,null,null,null,null,false]
[null,null,15,"How does your company ensure transparency and equality in remuneration and benefits?"]
[null,null,null,"Our pay and benefit schemes are made transparent to all employees.",null,null,null,null,null,null,null,null,null,null,null,null,null,null,null,null,null,false]
[null,null,null,"We publicly report our equal pay statistics. ",null,null,null,null,null,null,null,null,null,null,null,null,null,null,null,null,null,false]
[null,null,null,"We strive to make all additional benefits (e.g. training) equally available to all staff members regardless of their gender, marital status, religion, age, or any other diversity dimension.",null,null,null,null,null,null,null,null,null,null,null,null,null,null,null,null,null,false]
[null,null,null,"Other, please specify:",null,null,null,null,null,null,null,null,null,null,null,null,null,null,null,null,null,false]
[null,null,null,"None of the above",null,null,null,null,null,null,null,null,null,null,null,null,null,null,null,null,false]
[null,null,16,"How does your company protect your employees against harassment?"]
[null,null,null,"We have an anti-harassment policy.",null,null,null,null,null,null,null,null,null,null,null,null,null,null,null,null,null,false]
[null,null,null,"We conduct harassment prevention training.",null,null,null,null,null,null,null,null,null,null,null,null,null,null,null,null,null,false]
[null,null,null,"We have an anonymous complaints procedure (including reporting of incidents, protection for whistle-blowers, and support of harassment victims).",null,null,null,null,null,null,null,null,null,null,null,null,null,null,null,null,null,false]
[null,null,null,"Managers are held accountable to the principles of respectful behaviour in communication and interaction.",null,null,null,null,null,null,null,null,null,null,null,null,null,null,null,null,null,false]
[null,null,null,"Other, please specify:",null,null,null,null,null,null,null,null,null,null,null,null,null,null,null,null,null,false]
[null,null,null,"None of the above",null,null,null,null,null,null,null,null,null,null,null,null,null,null,null,null,false]
[null,"Total",{"$f":"COUNTIF(V149:V187, TRUE)","v":0}]
[]
[null,null,"Employee Health & Safety"]
[null,"Back to top"]
[null,"Responsibility in Research & Innovation starts with the protection of employees by ensuring their health and safety. The following helps you to self-assess how well you manage employee health and safety."]
[null,null,17,"How does your company ensure health and safety of employees involved in development, manufacture, distribution, use, disposal, and recycling of products?"]
[null,null,null,"We have a written health and safety policy in place.",null,null,null,null,null,null,null,null,null,null,null,null,null,null,null,null,null,false]
[null,null,null,"Regular health and safety trainings are organised.",null,null,null,null,null,null,null,null,null,null,null,null,null,null,null,null,null,false]
[null,null,null,"We have a formalised system for employees to report their health and safety concerns.",null,null,null,null,null,null,null,null,null,null,null,null,null,null,null,null,null,false]
[null,null,null,"Safety procedures are available on site for all employees and visitors.",null,null,null,null,null,null,null,null,null,null,null,null,null,null,null,null,null,false]
[null,null,null,"Routine internal and external inspections are conducted and analysed for possible improvements.",null,null,null,null,null,null,null,null,null,null,null,null,null,null,null,null,null,false]
[null,null,null,"Safety issues and accidents are archived.",null,null,null,null,null,null,null,null,null,null,null,null,null,null,null,null,null,false]
[null,null,null,"We disclose the standards and protocols used for ensuring health and safety.",null,null,null,null,null,null,null,null,null,null,null,null,null,null,null,null,null,false]
[null,null,null,"Other, please specify:",null,null,null,null,null,null,null,null,null,null,null,null,null,null,null,null,null,false]
[null,null,null,"None of the above",null,null,null,null,null,null,null,null,null,null,null,null,null,null,null,null,false]
[null,"Total",{"$f":"COUNTIF(V189:V202, TRUE)","v":0}]
[]
[null,null,"Employee Responsibility"]
[null,"Back to top"]
[null,"Decisions that may affect how beneficial company products and services will be to society are made by employees. In order to ensure that innovation activities are managed responsibly and innovations are created that benefit society, all employees should be enabled to implement Responsible Innovation practices within their scope of work."]
[null,null,18,"How are employees in your company empowered to conduct Responsible Innovation?"]
[null,null,null,"Employees receive environmental awareness training.",null,null,null,null,null,null,null,null,null,null,null,null,null,null,null,null,null,false]
[null,null,null,"Employees receive social awareness training.",null,null,null,null,null,null,null,null,null,null,null,null,null,null,null,null,null,false]
[null,null,null,"Employees are trained on gender and diversity issues related to the company’s products and services.",null,null,null,null,null,null,null,null,null,null,null,null,null,null,null,null,null,false]
[null,null,null,"Employees receive interdisciplinary training.",null,null,null,null,null,null,null,null,null,null,null,null,null,null,null,null,null,false]
[null,null,null,"Employees are encouraged to reflect on purpose and the potential impact of the company’s research and innovative solutions.",null,null,null,null,null,null,null,null,null,null,null,null,null,null,null,null,null,false]
[null,null,null,"Employee feedback/performance reviews include aspects of Responsible Innovation.",null,null,null,null,null,null,null,null,null,null,null,null,null,null,null,null,null,false]
[null,null,null,"Employees are given an opportunity to provide feedback on how the company’s responsibility in research and innovation processes can be improved.",null,null,null,null,null,null,null,null,null,null,null,null,null,null,null,null,null,false]
[null,null,null,"Other, please specify:",null,null,null,null,null,null,null,null,null,null,null,null,null,null,null,null,null,false]
[null,null,null,"None of the above",null,null,null,null,null,null,null,null,null,null,null,null,null,null,null,null,false]
[null,"Total",{"$f":"COUNTIF(V205:V217, TRUE)","v":0}]

{"sheet":"Idea Generation & Research","index":3,"n_rows":147,"n_cols":22,"rows_kept":147,"cut":false,"hidden":false,"merged":[[88,3,88,10],[87,3,87,10],[86,3,86,11],[78,3,78,11],[77,1,77,11],[99,3,99,10],[89,3,89,11],[15,0,29,0],[131,3,131,10],[130,3,130,10],[127,3,127,11],[96,3,96,10],[97,3,97,10],[98,3,98,10],[94,3,94,11],[90,3,90,10],[60,3,60,10],[61,3,61,10],[83,3,83,10],[84,3,84,4],[84,5,84,9],[70,3,70,10],[79,3,79,10],[63,3,63,10],[147,3,147,9],[146,3,146,9],[145,3,145,9],[140,3,140,10],[138,1,138,11],[141,3,141,10],[142,3,142,10],[144,3,144,4],[144,5,144,9],[143,3,143,10],[139,3,139,11],[80,3,80,10],[81,3,81,10],[82,3,82,10],[72,3,72,9],[52,3,52,10],[53,3,53,10],[54,3,54,10],[55,3,55,10],[56,3,56,10],[69,3,69,10],[68,3,68,10],[67,3,67,11],[66,3,66,9],[65,5,65,9],[114,3,114,10],[115,3,115,10],[116,3,116,10],[4,2,4,7],[21,1,21,11],[38,1,38,11],[22,3,22,11],[26,3,26,11],[39,3,39,11],[51,3,51,11],[59,3,59,11],[62,3,62,10],[40,3,40,10],[41,3,41,10],[42,3,42,10],[43,3,43,10],[44,3,44,10],[23,3,23,10],[24,3,24,10],[27,3,27,10],[28,3,28,10],[29,3,29,10],[30,3,30,10],[64,3,64,10],[105,3,105,10],[106,3,106,10],[107,3,107,10],[108,3,108,10],[100,3,100,10],[91,3,91,10],[95,3,95,10],[92,3,92,4],[92,5,92,9],[93,3,93,9],[129,3,129,10],[58,3,58,9],[45,3,45,10],[46,3,46,10],[47,3,47,10],[48,3,48,10],[25,3,25,9],[32,3,32,4],[32,5,32,9],[33,3,33,9],[49,3,49,4],[49,5,49,9],[31,3,31,11],[50,3,50,10],[57,3,57,6],[57,7,57,10],[102,3,102,4],[102,5,102,9],[103,3,103,9],[119,3,119,11],[104,3,104,11],[117,3,117,4],[117,5,117,9],[118,3,118,9],[155,3,155,9],[156,3,156,9],[157,3,157,9],[19,2,19,8],[36,2,36,8],[75,2,75,8],[136,2,136,8],[7,2,7,4],[8,2,8,4],[9,2,9,4],[10,2,10,4],[126,3,126,9],[125,3,125,4],[125,5,125,9],[120,3,120,10],[121,3,121,10],[122,3,122,10],[123,3,123,10],[124,3,124,10],[101,3,101,10],[132,3,132,4],[132,5,132,9],[133,3,133,9],[128,3,128,10],[166,3,166,9],[167,3,167,9],[65,3,65,4],[71,5,71,9],[85,3,85,11],[109,3,109,10],[110,3,110,10],[111,3,111,10],[112,3,112,10],[113,3,113,10],[158,3,158,9],[159,3,159,9],[160,3,160,9],[161,3,161,9],[162,3,162,9],[163,3,163,9],[164,3,164,9],[165,3,165,9],[149,3,149,9],[150,3,150,9],[151,3,151,9],[152,3,152,9],[153,3,153,9],[154,3,154,9]]}
[]
[null,null,"You have already scored",null,null,{"$f":"H12","v":0},"points in this section"]
["Idea Generation & Research"]
[]
[null,null,"Section results overview"]
[null,null,"Element",null,null,"Scored","Possible","Share"]
[]
[null,null,{"$f":"C20","v":"Prioritising Societal Challenges"},null,null,{"$f":"C35","v":0},{"$f":"COUNTA(V24:V34)","v":8},{"$f":"F8/G8","v":0}]
[null,null,{"$f":"C37","v":"Involving Stakeholders"},null,null,{"$f":"C74","v":0},{"$f":"COUNTA(V41:V73)","v":26},{"$f":"F9/G9","v":0}]
[null,null,{"$f":"C76","v":"Anticipating Impacts"},null,null,{"$f":"C135","v":0},{"$f":"COUNTA(V80:V134)","v":44},{"$f":"F10/G10","v":0}]
[null,null,{"$f":"C137","v":"Reviewing & Adapting"},null,null,{"$f":"C147","v":0},{"$f":"COUNTA(V141:V146)","v":5},{"$f":"F11/G11","v":0}]
[null,null,null,null,"Total points",{"$f":"SUM(F8:F11)","v":0},{"$f":"SUM(G8:G11)","v":83},{"$f":"F12/G12","v":0}]
[]
[]
[]
["This section will ask you about practices that your company follows at the beginning of an innovation, from idea inception and research to selection for further technical development.\n\nFor many SMEs with limited resources, it may be most important to invest in aligning these stages with responsible innovation principles, as the consideration of responsibility aspects in the initial stages of any innovation can make the greatest impacts on responsible outcomes."]
[]
[]
[]
[null,null,"Prioritising Societal Challenges"]
[null,"Back to top"]
[null,"As a responsible innovator a company identifies relevant societal challenges and prioritizes research and innovation that could make a positive contribution to solving them."]
[null,null,19,"Which of the following criteria are decisive in prioritising new ideas for products or services? "]
[null,null,null,"Serving user needs",null,null,null,null,null,null,null,null,null,null,null,null,null,null,null,null,null,false]
[null,null,null,"Potential to alleviate a societal or environmental challenge",null,null,null,null,null,null,null,null,null,null,null,null,null,null,null,null,null,false]
[null,null,null,"None of the above",null,null,null,null,null,null,null,null,null,null,null,null,null,null,null,null,false]
[null,null,20,"How does your company identify societal challenges and the company’s role in alleviating them?"]
[null,null,null,"We observe international and national societal challenges (e.g. the United Nation’s Sustainable Development Goals).",null,null,null,null,null,null,null,null,null,null,null,null,null,null,null,null,null,false]
[null,null,null,"We observe societal trends to identify how we could contribute to positive changes.",null,null,null,null,null,null,null,null,null,null,null,null,null,null,null,null,null,false]
[null,null,null,"We engage in activities outside our core business to broaden our long-term view of societal, technological, and regulatory developments.",null,null,null,null,null,null,null,null,null,null,null,null,null,null,null,null,null,false]
[null,null,null,"We cooperate with experts to better understand social, ethical and environmental concerns related to our innovations.",null,null,null,null,null,null,null,null,null,null,null,null,null,null,null,null,null,false]
[null,null,null,"We consult with external stakeholders to better understand potential positive impact of our innovative products or service on the society or the environment.",null,null,null,null,null,null,null,null,null,null,null,null,null,null,null,null,null,false]
[null,null,null,"Other, please specify:",null,null,null,null,null,null,null,null,null,null,null,null,null,null,null,null,null,false]
[null,null,null,"None of the above",null,null,null,null,null,null,null,null,null,null,null,null,null,null,null,null,false]
[null,"Total",{"$f":"COUNTIF(V24:V34,TRUE)","v":0}]
[]
[null,null,"Involving Stakeholders"]
[null,"Back to top"]
[null,"Involving diverse groups of stakeholders in various roles early on in the innovation process helps to identify societal needs, develops a holistic view of the challenges that the innovation tries to address, and gathers diverse knowledge on how the innovation can contribute to societal wellbeing and environmental sustainability."]
[null,null,21,"Which of the following groups does your company involve in the idea generation or early research stage of an innovation process?"]
[null,null,null,"Shareholders",null,null,null,null,null,null,null,null,null,null,null,null,null,null,null,null,null,false]
[null,null,null,"Customers",null,null,null,null,null,null,null,null,null,null,null,null,null,null,null,null,null,false]
[null,null,null,"Users",null,null,null,null,null,null,null,null,null,null,null,null,null,null,null,null,null,false]
[null,null,null,"Supply chain partners",null,null,null,null,null,null,null,null,null,null,null,null,null,null,null,null,null,false]
[null,null,null,"Experts",null,null,null,null,null,null,null,null,null,null,null,null,null,null,null,null,null,false]
[null,null,null,"Governmental agencies",null,null,null,null,null,null,null,null,null,null,null,null,null,null,null,null,null,false]
[null,null,null,"Civil society organisations",null,null,null,null,null,null,null,null,null,null,null,null,null,null,null,null,null,false]
[null,null,null,"Consumer bodies, patient associations or other civil society organisations",null,null,null,null,null,null,null,null,null,null,null,null,null,null,null,null,null,false]
[null,null,null,"The general public",null,null,null,null,null,null,null,null,null,null,null,null,null,null,null,null,null,false]
[null,null,null,"Other, please specify:",null,null,null,null,null,null,null,null,null,null,null,null,null,null,null,null,null,false]
[null,null,null,"We do not involve any of the above mentioned groups in the idea generation or early research stage of an innovation process.",null,null,null,null,null,null,null,null,null,null,null,null,null,null,null,null,false]
[null,null,22,"In which roles are the groups indicated in the previous question involved in idea generation or early research?"]
[null,null,null,"They are informed of research topics and processes.",null,null,null,null,null,null,null,null,null,null,null,null,null,null,null,null,null,false]
[null,null,null,"They provide information; e.g. as respondents to market research or focus group participants.",null,null,null,null,null,null,null,null,null,null,null,null,null,null,null,null,null,false]
[null,null,null,"They provide feedback on the research process or the envisioned innovation.",null,null,null,null,null,null,null,null,null,null,null,null,null,null,null,null,null,false]
[null,null,null,"They are involved in agenda setting for company research.",null,null,null,null,null,null,true,null,null,null,null,null,null,null,null,null,null,false]
[null,null,null,"They co-design research with us.",null,null,null,null,null,null,null,null,null,null,null,null,null,null,null,null,null,false]
[null,null,null,"They are involved in other roles, please specify:",null,null,null,null,null,null,null,null,null,null,null,null,null,null,null,null,null,false]
[null,null,null,"We do not consult stakeholders in idea generation or early research.",null,null,null,null,null,null,null,null,null,null,null,null,null,null,null,null,false]
[null,null,23,"How does your company ensure effective, productive and fair stakeholder engagement? "]
[null,null,null,"We are transparent about the objectives of stakeholder engagement and stakeholder roles prior to starting the process.",null,null,null,null,null,null,null,null,null,null,null,null,null,null,null,null,null,false]
[null,null,null,"We clearly define the tasks of participating stakeholders.",null,null,null,null,null,null,null,null,null,null,null,null,null,null,null,null,null,false]
[null,null,null,"We share all information relevant to the engagement process.",null,null,null,null,null,null,null,null,null,null,null,null,null,null,null,null,null,false]
[null,null,null,"We use a third party moderator or experienced facilitator to enable the development of trustful relationships between participating stakeholders.",null,null,null,null,null,null,null,null,null,null,null,null,null,null,null,null,null,false]
[null,null,null,"We take measures to facilitate the exchange of diverging views of different stakeholders.",null,null,null,null,null,null,null,null,null,null,null,null,null,null,null,null,null,false]
[null,null,null,"Other measures, please specify:",null,null,null,null,null,null,null,null,null,null,null,null,null,null,null,null,null,false]
[null,null,null,"We do not practice stakeholder engagement. / We practice stakeholder engagement, but none of the above apply.",null,null,null,null,null,null,null,null,null,null,null,null,null,null,null,null,false]
[null,null,24,"How is stakeholder input handled in the idea generation or early research stage of an innovation process?"]
[null,null,null,"We aim to integrate stakeholder views, including critical ones, into the development of our innovation.",null,null,null,null,null,null,null,null,null,null,null,null,null,null,null,null,null,false]
[null,null,null,"We are transparent about the process of deciding which ideas and feedback are taken up and which are not.",null,null,null,null,null,null,null,null,null,null,null,null,null,null,null,null,null,false]
[null,null,null,"We are transparent about what happens to stakeholder input and how it is integrated into further developments.",null,null,null,null,null,null,null,null,null,null,null,null,null,null,null,null,null,false]
[null,null,null,"Other measures, please specify:",null,null,null,null,null,null,null,null,null,null,null,null,null,null,null,null,null,false]
[null,null,null,"We do not practice stakeholder engagement. / We practice stakeholder engagement, but none of the above apply.",null,null,null,null,null,null,null,null,null,null,null,null,null,null,null,null,false]
[null,"Total",{"$f":"COUNTIF(V41:V73,TRUE)","v":0}]
[]
[null,null,"Anticipating Impacts"]
[null,"Back to top"]
[null,"Early consideration of potential positive and negative impacts on society, the economy, and the environment is key to ensuring Responsible Innovation. This includes anticipation of what could go wrong or how the innovation’s use could have a potentially harmful effect on people or the environment in the long-term."]
[null,null,25,"What types of impact does your company take into account when anticipating the (positive and negative) impacts of your product/service?"]
[null,null,null,"Expected positive impact on society or the environment",null,null,null,null,null,null,null,null,null,null,null,null,null,null,null,null,null,false]
[null,null,null,"Unintended negative consequences e.g. from unintended use of a product/service",null,null,null,null,null,null,null,null,null,null,null,null,null,null,null,null,null,false]
[null,null,null,"Trade-offs between different sustainability issues or societal needs (e.g. environmental benefit at a social cost)",null,null,null,null,null,null,null,null,null,null,null,null,null,null,null,null,null,false]
[null,null,null,"Trade-offs between consequences at different stages of the product/service life cycle",null,null,null,null,null,null,null,null,null,null,null,null,null,null,null,null,null,false]
[null,null,null,"Impacts on different groups of people (genders, ethnicities, ages, physical abilities, geographic locations, cultures, religions etc.)",null,null,null,null,null,null,null,null,null,null,null,null,null,null,null,null,null,false]
[null,null,null,"Other, please specify:",null,null,null,null,null,null,null,null,null,null,null,null,null,null,null,null,null,false]
[null,null,null,"We do not anticipate the potential impact of our innovations. / We anticipate the potential impact of our innovations, but do not take any of the above into account.",null,null,null,null,null,null,null,null,null,null,null,null,null,null,null,null,false]
[null,null,26,"Which practices does your company have in place to anticipate potential positive and negative consequences of an innovation?"]
[null,null,null,"We clearly identify which societal needs we want to address with our innovations.",null,null,null,null,null,null,null,null,null,null,null,null,null,null,null,null,null,false]
[null,null,null,"We conduct pilot studies to evaluate different impact scenarios.",null,null,null,null,null,null,null,null,null,null,null,null,null,null,null,null,null,false]
[null,null,null,"We employ exercises in which we try to imagine the worst case scenarios of misuse/misemployment/derivation/evil use of our innovation as a way to explore potential risks.",null,null,null,null,null,null,null,null,null,null,null,null,null,null,null,null,null,false]
[null,null,null,"We conduct ex-ante impact assessments of our innovations.",null,null,null,null,null,null,null,null,null,null,null,null,null,null,null,null,null,false]
[null,null,null,"We conduct technology assessments. ",null,null,null,null,null,null,null,null,null,null,null,null,null,null,null,null,null,false]
[null,null,null,"Other, please specify:",null,null,null,null,null,null,null,null,null,null,null,null,null,null,null,null,null,false]
[null,null,null,"None of the above",null,null,null,null,null,null,null,null,null,null,null,null,null,null,null,null,false]
[null,null,27,"Which of the following environmental issues are considered when anticipating the (positive and negative) impacts of your company’s products/services? "]
[null,null,null,"Energy consumption",null,null,null,null,null,null,null,null,null,null,null,null,null,null,null,null,null,false]
[null,null,null,"Renewable resource consumption (e.g. wood, water)",null,null,null,null,null,null,null,null,null,null,null,null,null,null,null,null,null,false]
[null,null,null,"Non-renewable resource consumption (e.g. metals, fossil fuels)",null,null,null,null,null,null,null,null,null,null,null,null,null,null,null,null,null,false]
[null,null,null,"Greenhouse gas emissions",null,null,null,null,null,null,null,null,null,null,null,null,null,null,null,null,null,false]
[null,null,null,"Toxic substances emissions (e.g. into water, soil or air)",null,null,null,null,null,null,null,null,null,null,null,null,null,null,null,null,null,false]
[null,null,null,"Waste generation",null,null,null,null,null,null,null,null,null,null,null,null,null,null,null,null,null,false]
[null,null,null,"Biodiversity maintenance",null,null,null,null,null,null,null,null,null,null,null,null,null,null,null,null,null,false]
[null,null,null,"Other, please specify:",null,null,null,null,null,null,null,null,null,null,null,null,null,null,null,null,null,false]
[null,null,null,"We do not consider any consequences on the natural environment when anticipating the potential impact of our innovations. ",null,null,null,null,null,null,null,null,null,null,null,null,null,null,null,null,false]
[null,null,28,"Which of the following social aspects do you consider when anticipating the (positive and negative) impacts of your company’s products/services?"]
[null,null,null,"Equal opportunities independent of e.g. gender, age, ethnicity, religion, physical abilities, marital status, sexuality ",null,null,null,null,null,null,null,null,null,null,null,null,null,null,null,null,null,false]
[null,null,null,"Impact on marginalised groups; e.g. disabled people, migrants, elderly",null,null,null,null,null,null,null,null,null,null,null,null,null,null,null,null,null,false]
[null,null,null,"A person’s legal and human rights, such as access to sufficient food and water, health rights, work rights, land rights",null,null,null,null,null,null,null,null,null,null,null,null,null,null,null,null,null,false]
[null,null,null,"Employment opportunities ",null,null,null,null,null,null,null,null,null,null,null,null,null,null,null,null,null,false]
[null,null,null,"Affordable housing",null,null,null,null,null,null,null,null,null,null,null,null,null,null,null,null,null,false]
[null,null,null,"Public health",null,null,null,null,null,null,null,null,null,null,null,null,null,null,null,null,null,false]
[null,null,null,"Public safety",null,null,null,null,null,null,null,null,null,null,null,null,null,null,null,null,null,false]
[null,null,null,"Access to education",null,null,null,null,null,null,null,null,null,null,null,null,null,null,null,null,null,false]
[null,null,null,"Personal privacy",null,null,null,null,null,null,null,null,null,null,null,null,null,null,null,null,null,false]
[null,null,null,"Personal autonomy",null,null,null,null,null,null,null,null,null,null,null,null,null,null,null,null,null,false]
[null,null,null,"A person’s attitudes, emotions, thoughts",null,null,null,null,null,null,null,null,null,null,null,null,null,null,null,null,null,false]
[null,null,null,"Employment opportunities ",null,null,null,null,null,null,null,null,null,null,null,null,null,null,null,null,null,false]
[null,null,null,"Other, please specify:",null,null,null,null,null,null,null,null,null,null,null,null,null,null,null,null,null,false]
[null,null,null,"We do not consider any social aspects when anticipating the potential impact of our innovations.",null,null,null,null,null,null,null,null,null,null,null,null,null,null,null,null,false]
[null,null,29,"Which practices are in place in your company to ensure that societal impact is considered in the decision to further develop an innovative idea? "]
[null,null,null,"We keep the management regularly informed about expected positive and negative impacts connected to a particular idea.",null,null,null,null,null,null,null,null,null,null,null,null,null,null,null,null,null,false]
[null,null,null,"We discuss and share our insights with relevant communities or organisations in order to identify common solutions.",null,null,null,null,null,null,null,null,null,null,null,null,null,null,null,null,null,false]
[null,null,null,"We include social and environmental costs and benefits in business modelling.",null,null,null,null,null,null,null,null,null,null,null,null,null,null,null,null,null,false]
[null,null,null,"We document anticipated negative consequences in order to develop mitigation or prevention measures during the product/service development stage.",null,null,null,null,null,null,null,null,null,null,null,null,null,null,null,null,null,false]
[null,null,null,"If there are expected potential negative impacts on people or the environment, we do not pursue an idea.",null,null,null,null,null,null,null,null,null,null,null,null,null,null,null,null,null,false]
[null,null,null,"Other, please specify:",null,null,null,null,null,null,null,null,null,null,null,null,null,null,null,null,null,false]
[null,null,null,"None of the above",null,null,null,null,null,null,null,null,null,null,null,null,null,null,null,null,false]
[null,null,30,"Is it common practice in your company to adapt or discard a novel idea before development for any of the following reasons?"]
[null,null,null,"Potential negative impacts on society can be expected.",null,null,null,null,null,null,null,null,null,null,null,null,null,null,null,null,null,false]
[null,null,null,"Potential negative impacts on the environment can be expected.",null,null,null,null,null,null,null,null,null,null,null,null,null,null,null,null,null,false]
[null,null,null,"With current knowledge, we cannot assess potential negative impacts on society or the environment.",null,null,null,null,null,null,null,null,null,null,null,null,null,null,null,null,null,false]
[null,null,null,"The idea does not promise any positive societal or environmental impact.",null,null,null,null,null,null,null,null,null,null,null,null,null,null,null,null,null,false]
[null,null,null,"Other, please specify:",null,null,null,null,null,null,null,null,null,null,null,null,null,null,null,null,null,false]
[null,null,null,"None of the above",null,null,null,null,null,null,null,null,null,null,null,null,null,null,null,null,false]
[null,"Total",{"$f":"COUNTIF(V80:V134,TRUE)","v":0}]
[]
[null,null,"Reviewing & Adapting"]
[null,"Back to top"]
[null,"In highly innovative fields, rapid changes in the context, new developments, new information or knowledge, and changing attitudes can significantly influence the direction innovations may take. Review and feedback mechanisms allow companies to iteratively check the innovation process and make decisions on whether to adapt or move forward with the innovation."]
[null,null,31,"How does your company encourage employees to reflect on the company’s research and innovation?"]
[null,null,null,"Employees are encouraged to develop alternative solutions to identified problems.",null,null,null,null,null,null,null,null,null,null,null,null,null,null,null,null,null,false]
[null,null,null,"Staff are prompted to question their basic assumptions about company research, innovation processes, and output.",null,null,null,null,null,null,null,null,null,null,null,null,null,null,null,null,null,false]
[null,null,null,"Employees are encouraged to express concerns about the potential social or environmental effects of the company’s innovations.",null,null,null,null,null,null,null,null,null,null,null,null,null,null,null,null,null,false]
[null,null,null,"Concerns are often followed by an adaptation of procedures or an adaption of the product or service.",null,null,null,null,null,null,null,null,null,null,null,null,null,null,null,null,null,false]
[null,null,null,"Other, please specify:",null,null,null,null,null,null,null,null,null,null,null,null,null,null,null,null,null,false]
[null,null,null,"None of the above",null,null,null,null,null,null,null,null,null,null,null,null,null,null,null,null,false]
[null,"Total",{"$f":"COUNTIF(V141:V146,TRUE)","v":0}]

{"sheet":"Development & Testing","index":4,"n_rows":82,"n_cols":22,"rows_kept":82,"cut":false,"hidden":false,"merged":[[15,0,23,0],[55,3,55,10],[36,3,36,11],[4,2,4,7],[40,3,40,10],[7,2,7,4],[8,2,8,4],[9,2,9,4],[10,2,10,4],[29,3,29,4],[23,3,23,10],[24,3,24,10],[22,3,22,11],[30,3,30,9],[50,3,50,10],[51,3,51,10],[78,3,78,10],[41,3,41,4],[41,5,41,9],[42,3,42,9],[77,3,77,10],[71,3,71,11],[76,3,76,11],[75,3,75,9],[59,3,59,10],[63,3,63,11],[52,3,52,10],[53,3,53,10],[54,3,54,10],[56,3,56,4],[56,5,56,9],[26,3,26,10],[27,3,27,10],[73,3,73,10],[80,3,80,9],[79,3,79,10],[74,3,74,4],[74,5,74,9],[72,3,72,10],[60,3,60,10],[61,3,61,10],[62,3,62,10],[70,1,70,11],[64,5,64,9],[65,3,65,9],[64,3,64,4],[57,3,57,9],[19,2,19,8],[33,2,33,8],[45,2,45,8],[68,2,68,8],[21,1,21,11],[35,1,35,11],[47,1,47,11],[28,3,28,10],[29,5,29,9],[48,3,48,11],[58,3,58,11],[37,3,37,10],[38,3,38,10],[39,3,39,10],[49,3,49,10],[25,3,25,10]]}
[]
[null,null,"You have already scored",null,null,{"$f":"H12","v":0},"points in this section"]
["Development & Testing"]
[]
[null,null,"Section results overview"]
[null,null,"Element",null,null,"Scored","Possible","Share"]
[]
[null,null,{"$f":"C20","v":"Developing with Stakeholders"},null,null,{"$f":"C32","v":0},{"$f":"COUNTA(V24:V31)","v":7},{"$f":"F8/G8","v":0}]
[null,null,{"$f":"C34","v":"Implementing Safeguards"},null,null,{"$f":"C44","v":0},{"$f":"COUNTA(V38:V43)","v":5},{"$f":"F9/G9","v":0}]
[null,null,{"$f":"C46","v":"Sustainable Production and Sourcing"},null,null,{"$f":"C67","v":0},{"$f":"COUNTA(V50:V66)","v":14},0]
[null,null,{"$f":"C69","v":"Reviewing & Adapting"},null,null,{"$f":"C82","v":0},{"$f":"COUNTA(V73:V81)","v":6},0]
[null,null,null,null,"Total points",{"$f":"SUM(F8:F11)","v":0},{"$f":"SUM(G8:G11)","v":32},0]
[]
[]
[]
["This section covers all activities related to the development phase of the innovation process. It addresses decision-making about production, testing, and market entry. It also deals with the issue of safeguards from unintended negative effects."]
[]
[]
[]
[null,null,"Developing with Stakeholders"]
[null,"Back to top"]
[null,"Whenever a company involves stakeholders in co-developing or testing new products/services, this ensures the diversity of people involved and the fairness of the process. It also helps to ensure the acceptability and usability of any new innovation, and to detect and help solve ethical, social or environmental issues early in the process."]
[null,null,32,"How does your company involve stakeholders in product/service development and testing?"]
[null,null,null,"They test prototypes or pilots of new products/services. ",null,null,null,null,null,null,null,null,null,null,null,null,null,null,null,null,null,false]
[null,null,null,"They provide feedback on the comprehensiveness of information provided on products or services.",null,null,null,null,null,null,null,null,null,null,null,null,null,null,null,null,null,false]
[null,null,null,"They are asked to identify ethical, social, or environmental concerns.",null,null,null,null,null,null,null,null,null,null,null,null,null,null,null,null,null,false]
[null,null,null,"They are asked to identify solutions that could alleviate ethical, social, or environmental issues.",null,null,null,null,null,null,null,null,null,null,null,null,null,null,null,null,null,false]
[null,null,null,"They are asked to suggest improvements to increase the positive impacts of an innovative product or service.",null,null,null,null,null,null,null,null,null,null,null,null,null,null,null,null,null,false]
[null,null,null,"We do not involve stakeholders at this stage and disclose our reasons for not doing so (e.g. competitive data protection).",null,null,null,null,null,null,null,null,null,null,null,null,null,null,null,null,null,false]
[null,null,null,"Other, please specify:",null,null,null,null,null,null,null,null,null,null,null,null,null,null,null,null,null,false]
[null,null,null,"We do not involve stakeholders in product/service development and testing and do not offer any explanation for this.",null,null,null,null,null,null,null,null,null,null,null,null,null,null,null,null,false]
[null,"Total",{"$f":"COUNTIF(V24:V31,TRUE)","v":0}]
[]
[null,null,"Implementing Safeguards"]
[null,"Back to top"]
[null,"Some innovations may have potential dual uses or leave spaces for usage that may cause unintended negative consequences for people or the environment. In order to prevent negative consequences, the company can design safeguards early on that allow the mitigation of anticipated negative effects or prevent/limit the potential for unintended use."]
[null,null,33,"How does your company try to prevent unintended use of it innovative products or services?"]
[null,null,null,"We design our products/services in a way that minimizes their potential for unintended use.",null,null,null,null,null,null,null,null,null,null,null,null,null,null,null,null,null,false]
[null,null,null,"We include safeguards to prevent any potential negative effects that could not be addressed through design.",null,null,null,null,null,null,null,null,null,null,null,null,null,null,null,null,null,false]
[null,null,null,"A reclamation strategy takes effect if unforeseen failures or negative effects become apparent when the product/service is already on the market.",null,null,null,null,null,null,null,null,null,null,null,null,null,null,null,null,null,false]
[null,null,null,"We seek to find solutions with relevant external communities (e.g. industry associations, other industry sectors, civil society organisations, communities of practice, regulators) if we cannot prevent negative consequences through design, safeguards, or reclamation strategy.",null,null,null,null,null,null,null,null,null,null,null,null,null,null,null,null,null,false]
[null,null,null,"Other, please specify:",null,null,null,null,null,null,null,null,null,null,null,null,null,null,null,null,null,false]
[null,null,null,"None of the above",null,null,null,null,null,null,null,null,null,null,null,null,null,null,null,null,false]
[null,"Total",{"$f":"COUNTIF(V38:V43,TRUE)","v":0}]
[]
[null,null,"Sustainable Production and Sourcing"]
[null,"Back to top"]
[null,"An innovation’s impact on society and the environment is partly generated in its upstream value chain, production process, and disposal. As a responsible innovator, a company should ensure that negative effects from product packaging, use, and end-of-life, as well as its supply chain are managed with the environmental and social effects in mind."]
[null,null,34,"How does your company aim to minimise negative impacts on the natural environment? "]
[null,null,null,"We conduct life-cycle assessments.",null,null,null,null,null,null,null,null,null,null,null,null,null,null,null,null,null,false]
[null,null,null,"We acquire certification by a third party.",null,null,null,null,null,null,null,null,null,null,null,null,null,null,null,null,null,false]
[null,null,null,"We strive to reduce the total volumes used in packaging.",null,null,null,null,null,null,null,null,null,null,null,null,null,null,null,null,null,false]
[null,null,null,"We label all materials in products for effective recycling.",null,null,null,null,null,null,null,null,null,null,null,null,null,null,null,null,null,false]
[null,null,null,"We have a recycling or reclamation programme to support proper disposal or re-use.",null,null,null,null,null,null,null,null,null,null,null,null,null,null,null,null,null,false]
[null,null,null,"We design to facilitate disassembly and repair to extend the product’s/service’s lifespan.",null,null,null,null,null,null,null,null,null,null,null,null,null,null,null,null,null,false]
[null,null,null,"We monitor, report and have targets to reduce our environmental impacts.",null,null,null,null,null,null,null,null,null,null,null,null,null,null,null,null,null,false]
[null,null,null,"Other, please specify:",null,null,null,null,null,null,null,null,null,null,null,null,null,null,null,null,null,false]
[null,null,null,"None of the above",null,null,null,null,null,null,null,null,null,null,null,null,null,null,null,null,false]
[null,null,35,"Which of the following practices of responsible sourcing of materials does your company follow?"]
[null,null,null,"We hold suppliers accountable to social and environmental standards.",null,null,null,null,null,null,null,null,null,null,null,null,null,null,null,null,null,false]
[null,null,null,"We screen suppliers for positive practices; such as environmentally friendly production, excellent human rights, or labour practices.",null,null,null,null,null,null,null,null,null,null,null,null,null,null,null,null,null,false]
[null,null,null,"We screen suppliers for negative practices or non-compliance with international human rights or environmental standards.",null,null,null,null,null,null,null,null,null,null,null,null,null,null,null,null,null,false]
[null,null,null,"If we identify social or environmental issues, we notify our supply chain partners of the need to address them.",null,null,null,null,null,null,null,null,null,null,null,null,null,null,null,null,null,false]
[null,null,null,"We avoid sourcing significant parts of our supply chain from areas with poor records on human rights unless we ensure an effective human rights compliance policy.\n",null,null,null,null,null,null,null,null,null,null,null,null,null,null,null,null,null,false]
[null,null,null,"Other, please specify:",null,null,null,null,null,null,null,null,null,null,null,null,null,null,null,null,null,false]
[null,null,null,"None of the above",null,null,null,null,null,null,null,null,null,null,null,null,null,null,null,null,false]
[null,"Total",{"$f":"COUNTIF(V50:V66,TRUE)","v":0}]
[]
[null,null,"Reviewing & Adapting"]
[null,"Back to top"]
[null,"The initial knowledge base or context considered in the idea generation stage may have changed by the time the product/service prototype is developed. These changes may affect the anticipated impact the innovation is expected to have. Therefore, before the innovation is launched on the market a check should be conducted as to whether there are any substantial changes."]
[null,null,36,"How does your company re-evaluate expected impacts prior to market launch?"]
[null,null,null,"We re-examine the initial knowledge base.",null,null,null,null,null,null,null,null,null,null,null,null,null,null,null,null,null,false]
[null,null,null,"We re-examine contextual factors (e.g. social, political, legal).",null,null,null,null,null,null,null,null,null,null,null,null,null,null,null,null,null,false]
[null,null,null,"Other, please specify:",null,null,null,null,null,null,null,null,null,null,null,null,null,null,null,null,null,false]
[null,null,null,"We do not re-evaluate expected impacts prior to market launch.",null,null,null,null,null,null,null,null,null,null,null,null,null,null,null,null,false]
[null,null,37,"Is it common practice in your company to hold back or adapt an innovative product/service before it goes to market for any of the following reasons?"]
[null,null,null,"Negative impacts on society and/or the environment can be expected.",null,null,null,null,null,null,null,null,null,null,null,null,null,null,null,null,null,false]
[null,null,null,"Negative impacts on society and/or the environment cannot be assessed.",null,null,null,null,null,null,null,null,null,null,null,null,null,null,null,null,null,false]
[null,null,null,"No positive societal or environmental impact can be expected.",null,null,null,null,null,null,null,null,null,null,null,null,null,null,null,null,null,false]
[null,null,null,"None of the above",null,null,null,null,null,null,null,null,null,null,null,null,null,null,null,null,false]
[null,"Total",{"$f":"COUNTIF(V73:V81,TRUE)","v":0}]

{"sheet":"Market & Impact","index":5,"n_rows":96,"n_cols":22,"rows_kept":96,"cut":false,"hidden":false,"merged":[[15,0,31,0],[65,3,65,9],[58,1,58,11],[60,3,60,10],[64,5,64,9],[56,2,56,8],[52,3,52,4],[4,2,4,7],[21,1,21,11],[43,3,43,10],[44,3,44,10],[40,3,40,10],[41,3,41,10],[42,3,42,10],[23,3,23,10],[24,3,24,10],[25,3,25,10],[26,3,26,10],[27,3,27,10],[19,2,19,8],[29,3,29,10],[30,3,30,10],[7,2,7,4],[85,3,85,9],[71,3,71,11],[79,3,79,11],[72,3,72,10],[73,3,73,10],[74,3,74,10],[75,3,75,10],[80,3,80,10],[77,3,77,4],[77,5,77,9],[78,3,78,9],[81,3,81,10],[82,3,82,10],[83,3,83,10],[84,3,84,4],[84,5,84,9],[8,2,8,4],[9,2,9,4],[52,5,52,9],[37,3,37,9],[46,3,46,9],[45,3,45,10],[22,3,22,11],[38,3,38,11],[47,3,47,11],[48,3,48,10],[49,3,49,10],[50,3,50,10],[51,3,51,10],[28,3,28,10],[39,3,39,10],[36,3,36,10],[76,3,76,10],[31,3,31,10],[32,3,32,10],[33,3,33,10],[34,3,34,10],[35,3,35,10],[68,2,68,8],[53,3,53,9],[64,3,64,4],[62,3,62,10],[70,1,70,11],[59,3,59,11],[61,3,61,10],[63,3,63,10]]}
[]
[null,null,"You have already scored",null,null,{"$f":"H11","v":0},"points in this section"]
["Market & Impact"]
[]
[null,null,"Section results overview"]
[null,null,"Element",null,null,"Scored","Possible","Share"]
[]
[null,null,{"$f":"C20","v":"Contributing to Solving Societal Challenges"},null,null,{"$f":"C55","v":0},{"$f":"COUNTA(V24:V54)","v":26},{"$f":"F8/G8","v":0}]
[null,null,{"$f":"C57","v":"Minimising Negative Effects"},null,null,{"$f":"C67","v":0},{"$f":"COUNTA(V61:V66)","v":5},{"$f":"F9/G9","v":0}]
[null,null,{"$f":"C69","v":"Reviewing and Adapting"},null,null,{"$f":"C87","v":0},{"$f":"COUNTA(V73:V86)","v":11},{"$f":"F10/G10","v":0}]
[null,null,null,null,"Total points",{"$f":"SUM(F8:F10)","v":0},{"$f":"SUM(G8:G10)","v":42},0]
[]
[]
[]
[]
["This section focuses on the final stage of an innovation process, when the innovation is launched and re-evaluated. For your company to be a responsible innovator it is important not only to conduct research and manage the innovation process responsibly, but also ensure that innovations, once on market, do contribute to solving societal challenges.\n\nIt addresses the innovation’s impact, company strategies for soliciting and integrating feedback, and the management of unintended or negative effects resulting from the product/service.\n"]
[]
[]
[]
[null,null,"Contributing to Solving Societal Challenges"]
[null,"Back to top"]
[null,"This section allows you to review which key societal challenges, e.g. Sustainable Development Goals, your innovations help solve once they are launched. When answering this section think of particular products or services you have launched or are close to launching. "]
[null,null,38,"Which of the following social aspects do your company’s innovations support?"]
[null,null,null,"Employment opportunities ",null,null,null,null,null,null,null,null,null,null,null,null,null,null,null,null,null,false]
[null,null,null,"Equality (e.g. gender, age, ethnicity, religion, physical abilities, marital status, sexuality)",null,null,null,null,null,null,null,null,null,null,null,null,null,null,null,null,null,false]
[null,null,null,"Societal cohesion and solidarity",null,null,null,null,null,null,null,null,null,null,null,null,null,null,null,null,null,false]
[null,null,null,"Reduced poverty or risk of poverty",null,null,null,null,null,null,null,null,null,null,null,null,null,null,null,null,null,false]
[null,null,null,"Employment opportunities ",null,null,null,null,null,null,null,null,null,null,null,null,null,null,null,null,null,false]
[null,null,null,"Access to housing or improved housing conditions",null,null,null,null,null,null,null,null,null,null,null,null,null,null,null,null,null,false]
[null,null,null,"Access to products or services",null,null,null,null,null,null,null,null,null,null,null,null,null,null,null,null,null,false]
[null,null,null,"Healthcare or access to healthcare",null,null,null,null,null,null,null,null,null,null,null,null,null,null,null,null,null,false]
[null,null,null,"Education or access to education",null,null,null,null,null,null,null,null,null,null,null,null,null,null,null,null,null,false]
[null,null,null,"Gaining or maintenance of autonomy",null,null,null,null,null,null,null,null,null,null,null,null,null,null,null,null,null,false]
[null,null,null,"Gaining or maintenance of personal privacy",null,null,null,null,null,null,null,null,null,null,null,null,null,null,null,null,null,false]
[null,null,null,"Safety",null,null,null,null,null,null,null,null,null,null,null,null,null,null,null,null,null,false]
[null,null,null,"Human rights",null,null,null,null,null,null,null,null,null,null,null,null,null,null,null,null,null,false]
[null,null,null,"Peace",null,null,null,null,null,null,null,null,null,null,null,null,null,null,null,null,null,false]
[null,null,null,"None of the above",null,null,null,null,null,null,null,null,null,null,null,null,null,null,null,null,false]
[null,null,39,"Which of the following aspects of environmental sustainability do your company’s innovations support?"]
[null,null,null,"Reduced energy consumption",null,null,null,null,null,null,null,null,null,null,null,null,null,null,null,null,null,false]
[null,null,null,"Increased share of renewable resource consumption",null,null,null,null,null,null,null,null,null,null,null,null,null,null,null,null,null,false]
[null,null,null,"Reduced usage of non-renewable resources",null,null,null,null,null,null,null,null,null,null,null,null,null,null,null,null,null,false]
[null,null,null,"Reduced greenhouse gas emissions",null,null,null,null,null,null,null,null,null,null,null,null,null,null,null,null,null,false]
[null,null,null,"Reduced emissions of toxic or harmful substances into air, land or water",null,null,null,null,null,null,null,null,null,null,null,null,null,null,null,null,null,false]
[null,null,null,"Reduced waste generation",null,null,null,null,null,null,null,null,null,null,null,null,null,null,null,null,null,false]
[null,null,null,"Improved recycling processes",null,null,null,null,null,null,null,null,null,null,null,null,null,null,null,null,null,false]
[null,null,null,"None of the above",null,null,null,null,null,null,null,null,null,null,null,null,null,null,null,null,false]
[null,null,40,"How do you monitor the impact of your company’s innovations to societal well-being once they are on the market?"]
[null,null,null,"We conduct case studies.",null,null,null,null,null,null,null,null,null,null,null,null,null,null,null,null,null,false]
[null,null,null,"We conduct analyses based on expert feedback.",null,null,null,null,null,null,null,null,null,null,null,null,null,null,null,null,null,false]
[null,null,null,"We conduct analyses based on user feedback.",null,null,null,null,null,null,null,null,null,null,null,null,null,null,null,null,null,false]
[null,null,null,"We continuously assess societal impact using performance indicators.",null,null,null,null,null,null,null,null,null,null,null,null,null,null,null,null,null,false]
[null,null,null,"Other, please specify:",null,null,null,null,null,null,null,null,null,null,null,null,null,null,null,null,null,false]
[null,null,null,"We do not monitor an innovation’s impact on societal well-being once it is on the market.",null,null,null,null,null,null,null,null,null,null,null,null,null,null,null,null,false]
[null,"Total",{"$f":"COUNTIF(V24:V54, TRUE)","v":0}]
[]
[null,null,"Minimising Negative Effects"]
[null,"Back to top"]
[null,"Once an innovation is on the market a responsible company should make sure it has measures in place to minimise any potential negative effects that may arise from product use or misuse."]
[null,null,41,"How does your company ensure that potential negative impact is minimised once an innovation is on the market?"]
[null,null,null,"We provide appropriate information and guidance on safe processing, usage, transportation, storage, disposal, or recycling of our products.",null,null,null,null,null,null,null,null,null,null,null,null,null,null,null,null,null,false]
[null,null,null,"We communicate and educate about potential risks.",null,null,null,null,null,null,null,null,null,null,null,null,null,null,null,null,null,false]
[null,null,null,"We disclose information about incidents of unintended use, processing, transportation, storage, disposal, or recycling.",null,null,null,null,null,null,null,null,null,null,null,null,null,null,null,null,null,false]
[null,null,null,"We have an alert system in place where customers and end-users can notify us of potential negative effects or issues.",null,null,null,null,null,null,null,null,null,null,null,null,null,null,null,null,null,false]
[null,null,null,"Other, please specify:",null,null,null,null,null,null,null,null,null,null,null,null,null,null,null,null,null,false]
[null,null,null,"None of the above",null,null,null,null,null,null,null,null,null,null,null,null,null,null,null,null,false]
[null,"Total",{"$f":"COUNTIF(V61:V66,TRUE)","v":0}]
[]
[null,null,"Reviewing and Adapting"]
[null,"Back to top"]
[null,"Iterative re-evaluation of innovations and how they improve society and the environment are key to Responsible Innovation."]
[null,null,42,"How does your company ensure continuous improvement of products or services?"]
[null,null,null,"We regularly re-evaluate our products/services in light of changing technologies and contexts and use this information in further development.",null,null,null,null,null,null,null,null,null,null,null,null,null,null,null,null,null,false]
[null,null,null,"We monitor trends that may influence our innovations or how they are used.",null,null,null,null,null,null,null,null,null,null,null,null,null,null,null,null,null,false]
[null,null,null,"We commission third-party evaluations and use the results in further development.",null,null,null,null,null,null,null,null,null,null,null,null,null,null,null,null,null,false]
[null,null,null,"We commission user or customer surveys and implement feedback.",null,null,null,null,null,null,null,null,null,null,null,null,null,null,null,null,null,false]
[null,null,null,"We ask for stakeholder feedback about the impact of our products or services. ",null,null,null,null,null,null,null,null,null,null,null,null,null,null,null,null,null,false]
[null,null,null,"Other, please specify:",null,null,null,null,null,null,null,null,null,null,null,null,null,null,null,null,null,false]
[null,null,null,"None of the above",null,null,null,null,null,null,null,null,null,null,null,null,null,null,null,null,false]
[null,null,43,"How does your company integrate insights from evaluation or feedback back into your innovation processes?How do you integrate feedback back into your innovation process?"]
[null,null,null,"We improve information about a product/service.",null,null,null,null,null,null,null,null,null,null,null,null,null,null,null,null,null,false]
[null,null,null,"We adapt our marketing or sales approaches.",null,null,null,null,null,null,null,null,null,null,null,null,null,null,null,null,null,false]
[null,null,null,"We adapt innovative products or services.",null,null,null,null,null,null,null,null,null,null,null,null,null,null,null,null,null,false]
[null,null,null,"We transparently communicate our reasons for not taking feedback into account.",null,null,null,null,null,null,null,null,null,null,null,null,null,null,null,null,null,false]
[null,null,null,"Others, please specify:",null,null,null,null,null,null,null,null,null,null,null,null,null,null,null,null,null,false]
[null,null,null,"None of the above",null,null,null,null,null,null,null,null,null,null,null,null,null,null,null,null,false]
[null,"Total",{"$f":"COUNTIF(V73:V86,TRUE)","v":0}]
[]
[]
[]
[]
[]
[]
[]
[]
[null,null,null,null,null,null,null,null,null,null,null,null,null,null,null,null,null,null,null,null,true]

{"sheet":"Settings","index":6,"n_rows":2,"n_cols":1,"rows_kept":2,"cut":false,"hidden":true,"merged":[]}
["Yes"]
["No"]